[Event "Titled Tuesday Blitz March 01 Early 2022"]
[White "Sarkar, Justin"]
[Black "Borisova, Ekaterina"]
[WhiteFideId "2010011"]
[BlackFideId "34124184"]
[WhiteElo "2038"]
[BlackElo "2034"]
[Result "1/2-1/2"]
[Round "05"]
[TimeControl "180+1"]
[Date "2022.03.01"]
[WhiteClock "0:00:05"]
[BlackClock "0:00:07"]

1. d4 {[%clk 0:03:00]}  Nf6 {[%clk 0:02:59]} 2. c4 {[%clk 0:02:58]}  e6 {[%clk 0:02:59]} 3. Nc3 {[%clk 0:02:54]}  Bb4 {[%clk 0:02:59]} 4. a3 {[%clk 0:02:54]}  Bxc3+ {[%clk 0:02:59]} 5. bxc3 {[%clk 0:02:54]}  d5 {[%clk 0:02:59]} 6. e3 {[%clk 0:02:45]}  O-O {[%clk 0:02:58]} 7. Nf3 {[%clk 0:02:41]}  c5 {[%clk 0:02:54]} 8. Bd3 {[%clk 0:02:28]}  Nc6 {[%clk 0:02:45]} 9. O-O {[%clk 0:02:24]}  dxc4 {[%clk 0:02:34]} 10. Bxc4 {[%clk 0:02:23]}  b6 {[%clk 0:02:30]} 11. Qe2 {[%clk 0:02:18]}  Na5 {[%clk 0:02:26]} 12. Bd3 {[%clk 0:02:08]}  c4 {[%clk 0:02:19]} 13. Bxc4 {[%clk 0:01:58]}  Nxc4 {[%clk 0:02:19]} 14. Qxc4 {[%clk 0:01:59]}  Bb7 {[%clk 0:02:20]} 15. Qe2 {[%clk 0:01:53]}  Rc8 {[%clk 0:02:19]} 16. Bd2 {[%clk 0:01:48]}  Ne4 {[%clk 0:02:20]} 17. Rfc1 {[%clk 0:01:46]}  Nxd2 {[%clk 0:02:10]} 18. Nxd2 {[%clk 0:01:46]}  e5 {[%clk 0:02:07]} 19. Nf3 {[%clk 0:01:39]}  exd4 {[%clk 0:01:58]} 20. cxd4 {[%clk 0:01:39]}  Qf6 {[%clk 0:01:56]} 21. Ne5 {[%clk 0:01:30]}  Qd6 {[%clk 0:01:48]} 22. Qb2 {[%clk 0:01:17]}  h5 {[%clk 0:01:38]} 23. f3 {[%clk 0:01:11]}  h4 {[%clk 0:01:37]} 24. Rxc8 {[%clk 0:01:07]}  Rxc8 {[%clk 0:01:36]} 25. Rc1 {[%clk 0:01:06]}  h3 {[%clk 0:01:19]} 26. Rxc8+ {[%clk 0:01:01]}  Bxc8 {[%clk 0:01:20]} 27. g4 {[%clk 0:00:55]}  f6 {[%clk 0:01:19]} 28. Nc4 {[%clk 0:00:32]}  Qe7 {[%clk 0:01:18]} 29. Qb4 {[%clk 0:00:21]}  Qe6 {[%clk 0:01:18]} 30. Kf2 {[%clk 0:00:18]}  Ba6 {[%clk 0:01:17]} 31. Nd2 {[%clk 0:00:16]}  Qc6 {[%clk 0:01:10]} 32. Qe7 {[%clk 0:00:08]}  Qc2 {[%clk 0:00:34]} 33. Qe8+ {[%clk 0:00:08]}  Kh7 {[%clk 0:00:34]} 34. Qe4+ {[%clk 0:00:08]}  Qxe4 {[%clk 0:00:29]} 35. Nxe4 {[%clk 0:00:08]}  Bd3 {[%clk 0:00:26]} 36. Nd6 {[%clk 0:00:08]}  b5 {[%clk 0:00:22]} 37. e4 {[%clk 0:00:08]}  a5 {[%clk 0:00:22]} 38. Ke3 {[%clk 0:00:08]}  Bf1 {[%clk 0:00:21]} 39. d5 {[%clk 0:00:08]}  b4 {[%clk 0:00:13]} 40. axb4 {[%clk 0:00:08]}  axb4 {[%clk 0:00:13]} 41. Kd4 {[%clk 0:00:08]}  Be2 {[%clk 0:00:13]} 42. Nb7 {[%clk 0:00:07]}  Bxf3 {[%clk 0:00:12]} 43. d6 {[%clk 0:00:07]}  Bxg4 {[%clk 0:00:12]} 44. Nc5 {[%clk 0:00:07]}  b3 {[%clk 0:00:13]} 45. Nxb3 {[%clk 0:00:06]}  Kg6 {[%clk 0:00:12]} 46. Nc5 {[%clk 0:00:05]}  Kg5 {[%clk 0:00:13]} 47. d7 {[%clk 0:00:04]}  Bxd7 {[%clk 0:00:12]} 48. Nxd7 {[%clk 0:00:04]}  Kf4 {[%clk 0:00:13]} 49. Nf8 {[%clk 0:00:04]}  Kf3 {[%clk 0:00:13]} 50. Ng6 {[%clk 0:00:03]}  Kg2 {[%clk 0:00:13]} 51. Ke3 {[%clk 0:00:04]}  Kxh2 {[%clk 0:00:13]} 52. Kf2 {[%clk 0:00:04]}  Kh1 {[%clk 0:00:11]} 53. e5 {[%clk 0:00:04]}  fxe5 {[%clk 0:00:11]} 54. Nxe5 {[%clk 0:00:05]}  g5 {[%clk 0:00:10]} 55. Ng4 {[%clk 0:00:05]}  h2 {[%clk 0:00:10]} 56. Kg3 {[%clk 0:00:04]}  Kg1 {[%clk 0:00:10]} 57. Nxh2 {[%clk 0:00:05]}  g4 {[%clk 0:00:07]} 58. Nxg4 {[%clk 0:00:05]} 1/2-1/2


[Site "https://www.chess.com"]

[Event "Titled Tuesday Blitz March 01 Early 2022"]
[White "Seo, Jung Min"]
[Black "Jones, Gawain C B"]
[WhiteFideId "1734687"]
[BlackFideId "409561"]
[WhiteElo "2401"]
[BlackElo "2657"]
[Result "0-1"]
[Round "05"]
[TimeControl "180+1"]
[Date "2022.03.01"]
[WhiteClock "0:00:37"]
[BlackClock "0:00:38"]

1. d4 {[%clk 0:03:00]}  Nf6 {[%clk 0:02:58]} 2. c4 {[%clk 0:03:01]}  g6 {[%clk 0:02:58]} 3. f3 {[%clk 0:03:00]}  c5 {[%clk 0:02:57]} 4. d5 {[%clk 0:03:00]}  e6 {[%clk 0:02:56]} 5. e4 {[%clk 0:03:00]}  d6 {[%clk 0:02:56]} 6. Nc3 {[%clk 0:02:59]}  Bg7 {[%clk 0:02:55]} 7. Be3 {[%clk 0:02:59]}  exd5 {[%clk 0:02:54]} 8. cxd5 {[%clk 0:03:00]}  O-O {[%clk 0:02:54]} 9. Qd2 {[%clk 0:03:00]}  Nbd7 {[%clk 0:02:46]} 10. Nge2 {[%clk 0:02:59]}  a6 {[%clk 0:02:43]} 11. a4 {[%clk 0:02:58]}  Ne5 {[%clk 0:02:43]} 12. Ng3 {[%clk 0:02:58]}  h5 {[%clk 0:02:43]} 13. Be2 {[%clk 0:02:50]}  h4 {[%clk 0:02:43]} 14. Nf1 {[%clk 0:02:50]}  h3 {[%clk 0:02:39]} 15. g3 {[%clk 0:02:50]}  Bd7 {[%clk 0:02:34]} 16. g4 {[%clk 0:02:40]}  b5 {[%clk 0:02:25]} 17. Ng3 {[%clk 0:02:39]}  c4 {[%clk 0:02:16]} 18. O-O {[%clk 0:02:38]}  b4 {[%clk 0:02:08]} 19. Nd1 {[%clk 0:02:32]}  Qa5 {[%clk 0:01:57]} 20. Nf2 {[%clk 0:02:25]}  Rab8 {[%clk 0:01:47]} 21. Nxh3 {[%clk 0:02:19]}  c3 {[%clk 0:01:46]} 22. bxc3 {[%clk 0:02:15]}  bxc3 {[%clk 0:01:46]} 23. Qd1 {[%clk 0:02:15]}  Rb2 {[%clk 0:01:40]} 24. Nf4 {[%clk 0:02:09]}  Rfb8 {[%clk 0:01:27]} 25. g5 {[%clk 0:02:06]}  Nh7 {[%clk 0:01:20]} 26. h4 {[%clk 0:02:06]}  c2 {[%clk 0:01:18]} 27. Qe1 {[%clk 0:01:59]}  Qc7 {[%clk 0:01:07]} 28. h5 {[%clk 0:01:43]}  Rb1 {[%clk 0:01:03]} 29. Rxb1 {[%clk 0:01:09]}  cxb1=Q {[%clk 0:01:03]} 30. Qxb1 {[%clk 0:01:09]}  Rxb1 {[%clk 0:01:01]} 31. Rxb1 {[%clk 0:01:09]}  Nxg5 {[%clk 0:01:01]} 32. hxg6 {[%clk 0:01:09]}  Nexf3+ {[%clk 0:00:50]} 33. Kf2 {[%clk 0:01:07]}  Bd4 {[%clk 0:00:44]} 34. gxf7+ {[%clk 0:01:05]}  Kxf7 {[%clk 0:00:43]} 35. Bxf3 {[%clk 0:00:52]}  Qc2+ {[%clk 0:00:38]} 36. Nfe2 {[%clk 0:00:37]}  Bxe3+ {[%clk 0:00:38]} 37. Kxe3 {[%clk 0:00:37]}  Qxb1 {[%clk 0:00:38]} 0-1


[Site "https://www.chess.com"]

[Event "Titled Tuesday Blitz March 01 Early 2022"]
[White "Shubenkova, Veronika"]
[Black "Zaksaite, Salomeja"]
[WhiteFideId "44124040"]
[BlackFideId "12801496"]
[WhiteElo "1938"]
[BlackElo "2002"]
[Result "1-0"]
[Round "05"]
[TimeControl "180+1"]
[Date "2022.03.01"]
[WhiteClock "0:01:34"]
[BlackClock "0:00:01"]

1. e4 {[%clk 0:03:00]}  c5 {[%clk 0:02:58]} 2. Nc3 {[%clk 0:02:58]}  e6 {[%clk 0:02:57]} 3. g3 {[%clk 0:02:57]}  d5 {[%clk 0:02:56]} 4. d3 {[%clk 0:02:56]}  dxe4 {[%clk 0:02:55]} 5. Nxe4 {[%clk 0:02:55]}  Bd7 {[%clk 0:02:56]} 6. Bg2 {[%clk 0:02:55]}  Bc6 {[%clk 0:02:56]} 7. Ne2 {[%clk 0:02:55]}  f5 {[%clk 0:02:56]} 8. Bg5 {[%clk 0:02:46]}  Be7 {[%clk 0:02:42]} 9. Nf4 {[%clk 0:02:31]}  Bxg5 {[%clk 0:01:58]} 10. Qh5+ {[%clk 0:02:25]}  g6 {[%clk 0:01:26]} 11. Nxg6 {[%clk 0:02:15]}  hxg6 {[%clk 0:00:31]} 12. Qxh8 {[%clk 0:02:14]}  fxe4 {[%clk 0:00:05]} 13. Qxg8+ {[%clk 0:02:13]}  Kd7 {[%clk 0:00:05]} 14. Qf7+ {[%clk 0:02:09]}  Qe7 {[%clk 0:00:04]} 15. Qxg6 {[%clk 0:02:06]}  exd3 {[%clk 0:00:04]} 16. Qxd3+ {[%clk 0:02:03]}  Kc7 {[%clk 0:00:03]} 17. Bxc6 {[%clk 0:02:02]}  Nxc6 {[%clk 0:00:04]} 18. f4 {[%clk 0:02:01]}  Rd8 {[%clk 0:00:04]} 19. Qe3 {[%clk 0:01:57]}  Bf6 {[%clk 0:00:03]} 20. c3 {[%clk 0:01:57]}  e5 {[%clk 0:00:02]} 21. O-O {[%clk 0:01:50]}  exf4 {[%clk 0:00:02]} 22. Qxf4+ {[%clk 0:01:49]}  Be5 {[%clk 0:00:02]} 23. Qf5 {[%clk 0:01:47]}  Qd6 {[%clk 0:00:02]} 24. Rad1 {[%clk 0:01:42]}  Qxd1 {[%clk 0:00:02]} 25. Rxd1 {[%clk 0:01:41]}  Rxd1+ {[%clk 0:00:03]} 26. Kg2 {[%clk 0:01:42]}  Rd2+ {[%clk 0:00:03]} 27. Kh3 {[%clk 0:01:42]}  Rxb2 {[%clk 0:00:03]} 28. Qf3 {[%clk 0:01:38]}  Rxa2 {[%clk 0:00:03]} 29. Qf7+ {[%clk 0:01:38]}  Kb6 {[%clk 0:00:03]} 30. Qxa2 {[%clk 0:01:38]}  Bxc3 {[%clk 0:00:02]} 31. Qb3+ {[%clk 0:01:39]}  Bb4 {[%clk 0:00:02]} 32. Kg2 {[%clk 0:01:37]}  a5 {[%clk 0:00:03]} 33. h4 {[%clk 0:01:37]}  Kb5 {[%clk 0:00:03]} 34. Qd3+ {[%clk 0:01:37]}  c4 {[%clk 0:00:03]} 35. Qd5+ {[%clk 0:01:37]}  Bc5 {[%clk 0:00:03]} 36. h5 {[%clk 0:01:36]}  c3 {[%clk 0:00:02]} 37. h6 {[%clk 0:01:35]}  c2 {[%clk 0:00:01]} 38. Qd3+ {[%clk 0:01:34]} 1-0


[Site "https://www.chess.com"]

[Event "Titled Tuesday Blitz March 01 Early 2022"]
[White "Shuvalov, Evgenij"]
[Black "Kostiukov, Alexandr"]
[WhiteFideId "4187237"]
[BlackFideId "14108100"]
[WhiteElo "2119"]
[BlackElo "2202"]
[Result "1-0"]
[Round "05"]
[TimeControl "180+1"]
[Date "2022.03.01"]
[WhiteClock "0:00:51"]
[BlackClock "0:00:01"]

1. Nf3 {[%clk 0:02:57]}  g6 {[%clk 0:02:36]} 2. c4 {[%clk 0:02:56]}  Bg7 {[%clk 0:02:36]} 3. d4 {[%clk 0:02:56]}  d6 {[%clk 0:02:36]} 4. e4 {[%clk 0:02:55]}  e5 {[%clk 0:02:37]} 5. dxe5 {[%clk 0:02:53]}  dxe5 {[%clk 0:02:37]} 6. Qxd8+ {[%clk 0:02:53]}  Kxd8 {[%clk 0:02:38]} 7. Nc3 {[%clk 0:02:50]}  f6 {[%clk 0:02:38]} 8. Bd2 {[%clk 0:02:50]}  c6 {[%clk 0:02:34]} 9. O-O-O {[%clk 0:02:48]}  Nd7 {[%clk 0:02:31]} 10. Na4 {[%clk 0:02:33]}  Bh6 {[%clk 0:02:24]} 11. c5 {[%clk 0:02:29]}  Ke7 {[%clk 0:02:23]} 12. Bc4 {[%clk 0:02:26]}  b5 {[%clk 0:02:13]} 13. cxb6 {[%clk 0:02:15]}  axb6 {[%clk 0:02:08]} 14. Nc3 {[%clk 0:02:06]}  b5 {[%clk 0:02:01]} 15. Bxg8 {[%clk 0:02:04]}  Bxd2+ {[%clk 0:01:59]} 16. Nxd2 {[%clk 0:02:05]}  Rxg8 {[%clk 0:01:58]} 17. a3 {[%clk 0:02:03]}  Nc5 {[%clk 0:01:56]} 18. Kc2 {[%clk 0:01:59]}  Be6 {[%clk 0:01:55]} 19. b4 {[%clk 0:01:58]}  Na4 {[%clk 0:01:47]} 20. Nxa4 {[%clk 0:01:54]}  Rxa4 {[%clk 0:01:44]} 21. Kb2 {[%clk 0:01:54]}  Rga8 {[%clk 0:01:42]} 22. Ra1 {[%clk 0:01:53]}  f5 {[%clk 0:01:29]} 23. Rhc1 {[%clk 0:01:51]}  Kd6 {[%clk 0:01:22]} 24. f3 {[%clk 0:01:50]}  R4a7 {[%clk 0:01:15]} 25. Rc3 {[%clk 0:01:49]}  Bd7 {[%clk 0:00:40]} 26. Rac1 {[%clk 0:01:47]}  Rc8 {[%clk 0:00:23]} 27. Re1 {[%clk 0:01:32]}  Rac7 {[%clk 0:00:20]} 28. Rc5 {[%clk 0:01:26]}  Re8 {[%clk 0:00:10]} 29. Nb3 {[%clk 0:01:20]}  Be6 {[%clk 0:00:08]} 30. Rd1+ {[%clk 0:01:16]}  Ke7 {[%clk 0:00:06]} 31. Rxe5 {[%clk 0:01:15]}  Kf6 {[%clk 0:00:07]} 32. f4 {[%clk 0:01:10]}  Rce7 {[%clk 0:00:07]} 33. Rd6 {[%clk 0:01:09]}  fxe4 {[%clk 0:00:07]} 34. Nc5 {[%clk 0:01:07]}  g5 {[%clk 0:00:07]} 35. Nxe4+ {[%clk 0:01:05]}  Kg7 {[%clk 0:00:06]} 36. Nxg5 {[%clk 0:01:03]}  Bc4 {[%clk 0:00:05]} 37. Rxe7+ {[%clk 0:01:03]}  Rxe7 {[%clk 0:00:06]} 38. Kc3 {[%clk 0:01:00]}  Re2 {[%clk 0:00:06]} 39. g4 {[%clk 0:00:59]}  Re3+ {[%clk 0:00:04]} 40. Kd4 {[%clk 0:00:58]}  Rxa3 {[%clk 0:00:03]} 41. Rd7+ {[%clk 0:00:56]}  Kf6 {[%clk 0:00:02]} 42. Nxh7+ {[%clk 0:00:54]}  Kg6 {[%clk 0:00:02]} 43. Nf8+ {[%clk 0:00:53]}  Kf6 {[%clk 0:00:02]} 44. h4 {[%clk 0:00:51]}  Rb3 {[%clk 0:00:01]} 45. Kc5 {[%clk 0:00:51]} 1-0


[Site "https://www.chess.com"]

[Event "Titled Tuesday Blitz March 01 Early 2022"]
[White "Sinitsina, Anastassia"]
[Black "Balaji, Aaravamudhan"]
[WhiteFideId "4504640"]
[BlackFideId "436224"]
[WhiteElo "2144"]
[BlackElo "2085"]
[Result "1-0"]
[Round "05"]
[TimeControl "180+1"]
[Date "2022.03.01"]
[WhiteClock "0:00:37"]
[BlackClock "0:00:43"]

1. Nf3 {[%clk 0:03:00]}  e6 {[%clk 0:03:00]} 2. g3 {[%clk 0:03:00]}  b6 {[%clk 0:03:01]} 3. Bg2 {[%clk 0:03:01]}  Bb7 {[%clk 0:03:02]} 4. O-O {[%clk 0:03:01]}  Nf6 {[%clk 0:03:03]} 5. b3 {[%clk 0:03:00]}  d5 {[%clk 0:03:04]} 6. Bb2 {[%clk 0:03:00]}  Be7 {[%clk 0:03:05]} 7. d4 {[%clk 0:02:59]}  O-O {[%clk 0:03:06]} 8. Nbd2 {[%clk 0:02:59]}  Nbd7 {[%clk 0:03:07]} 9. Rc1 {[%clk 0:02:58]}  c5 {[%clk 0:03:07]} 10. c4 {[%clk 0:02:54]}  cxd4 {[%clk 0:03:07]} 11. Nxd4 {[%clk 0:02:53]}  Rc8 {[%clk 0:03:08]} 12. Qc2 {[%clk 0:02:49]}  Nc5 {[%clk 0:03:07]} 13. Qb1 {[%clk 0:02:48]}  Re8 {[%clk 0:03:05]} 14. Rfd1 {[%clk 0:02:46]}  Qc7 {[%clk 0:03:04]} 15. Nb5 {[%clk 0:02:45]}  Qb8 {[%clk 0:03:04]} 16. Qa1 {[%clk 0:02:43]}  Qa8 {[%clk 0:02:59]} 17. Be5 {[%clk 0:02:40]}  Nfd7 {[%clk 0:02:43]} 18. Bxg7 {[%clk 0:02:13]}  dxc4 {[%clk 0:02:40]} 19. Bxb7 {[%clk 0:02:10]}  Qxb7 {[%clk 0:02:41]} 20. Nxc4 {[%clk 0:02:10]}  Ne4 {[%clk 0:02:12]} 21. Bh6 {[%clk 0:01:53]}  e5 {[%clk 0:01:08]} 22. Qb1 {[%clk 0:01:12]}  Bg5 {[%clk 0:01:00]} 23. Bxg5 {[%clk 0:01:05]}  Nxg5 {[%clk 0:01:00]} 24. Qf5 {[%clk 0:01:03]}  Ne6 {[%clk 0:00:41]} 25. Nbd6 {[%clk 0:01:01]}  Qa8 {[%clk 0:00:39]} 26. Qxf7+ {[%clk 0:00:58]}  Kh8 {[%clk 0:00:38]} 27. Qxd7 {[%clk 0:00:55]}  Ng5 {[%clk 0:00:38]} 28. Nf7+ {[%clk 0:00:48]}  Nxf7 {[%clk 0:00:38]} 29. Qxf7 {[%clk 0:00:48]}  Rf8 {[%clk 0:00:38]} 30. Qd5 {[%clk 0:00:44]}  Qb8 {[%clk 0:00:37]} 31. Qxe5+ {[%clk 0:00:43]}  Qxe5 {[%clk 0:00:37]} 32. Nxe5 {[%clk 0:00:44]}  Rce8 {[%clk 0:00:38]} 33. f4 {[%clk 0:00:42]}  Rf6 {[%clk 0:00:38]} 34. Rd7 {[%clk 0:00:41]}  a5 {[%clk 0:00:38]} 35. Rcc7 {[%clk 0:00:41]}  Rh6 {[%clk 0:00:39]} 36. Nf7+ {[%clk 0:00:41]}  Kg7 {[%clk 0:00:39]} 37. Nxh6+ {[%clk 0:00:41]}  Kxh6 {[%clk 0:00:39]} 38. Rxh7+ {[%clk 0:00:41]}  Kg6 {[%clk 0:00:40]} 39. Rhe7 {[%clk 0:00:39]}  Kf5 {[%clk 0:00:41]} 40. Rxe8 {[%clk 0:00:39]}  Kg4 {[%clk 0:00:42]} 41. Kg2 {[%clk 0:00:37]}  Kf5 {[%clk 0:00:43]} 42. Re5+ {[%clk 0:00:37]}  Kf6 {[%clk 0:00:43]} 43. Rc6+ {[%clk 0:00:37]} 1-0


[Site "https://www.chess.com"]

[Event "Titled Tuesday Blitz March 01 Early 2022"]
[White "Sovetbekova, Nurai"]
[Black "Escudero Donoso, Felipe"]
[WhiteFideId "13801910"]
[BlackFideId "3410595"]
[WhiteElo "1545"]
[BlackElo "2184"]
[Result "0-1"]
[Round "05"]
[TimeControl "180+1"]
[Date "2022.03.01"]
[WhiteClock "0:00:02"]
[BlackClock "0:00:08"]

1. d4 {[%clk 0:03:00]}  Nf6 {[%clk 0:02:58]} 2. c4 {[%clk 0:03:01]}  e6 {[%clk 0:02:57]} 3. g3 {[%clk 0:03:01]}  d5 {[%clk 0:02:55]} 4. Bg2 {[%clk 0:03:01]}  Be7 {[%clk 0:02:56]} 5. Nf3 {[%clk 0:03:01]}  O-O {[%clk 0:02:55]} 6. O-O {[%clk 0:03:02]}  c6 {[%clk 0:02:56]} 7. Qc2 {[%clk 0:02:56]}  b6 {[%clk 0:02:56]} 8. Nbd2 {[%clk 0:02:52]}  Bb7 {[%clk 0:02:56]} 9. e4 {[%clk 0:02:52]}  Na6 {[%clk 0:02:56]} 10. a3 {[%clk 0:02:50]}  dxc4 {[%clk 0:02:57]} 11. Nxc4 {[%clk 0:02:48]}  c5 {[%clk 0:02:57]} 12. e5 {[%clk 0:02:16]}  Nd5 {[%clk 0:02:56]} 13. dxc5 {[%clk 0:02:11]}  Nxc5 {[%clk 0:02:57]} 14. b4 {[%clk 0:02:11]}  Nd7 {[%clk 0:02:57]} 15. Rd1 {[%clk 0:02:07]}  Rc8 {[%clk 0:02:51]} 16. Qb3 {[%clk 0:01:54]}  b5 {[%clk 0:02:29]} 17. Ne3 {[%clk 0:01:50]}  Nc3 {[%clk 0:01:36]} 18. Rd2 {[%clk 0:01:21]}  Qc7 {[%clk 0:01:24]} 19. Bb2 {[%clk 0:01:06]}  Ne4 {[%clk 0:01:13]} 20. Rc2 {[%clk 0:00:56]}  Qb8 {[%clk 0:01:12]} 21. Rac1 {[%clk 0:00:55]}  Nb6 {[%clk 0:01:12]} 22. Nd4 {[%clk 0:00:41]}  a6 {[%clk 0:00:59]} 23. Nc6 {[%clk 0:00:40]}  Bxc6 {[%clk 0:00:52]} 24. Rxc6 {[%clk 0:00:41]}  Nd2 {[%clk 0:00:45]} 25. Qd1 {[%clk 0:00:29]}  Ndc4 {[%clk 0:00:44]} 26. Qb3 {[%clk 0:00:22]}  Rxc6 {[%clk 0:00:40]} 27. Bxc6 {[%clk 0:00:23]}  Rd8 {[%clk 0:00:30]} 28. Nxc4 {[%clk 0:00:10]}  Nxc4 {[%clk 0:00:31]} 29. Bg2 {[%clk 0:00:09]}  Nxe5 {[%clk 0:00:22]} 30. Qc3 {[%clk 0:00:03]}  Bf6 {[%clk 0:00:23]} 31. Qc5 {[%clk 0:00:03]}  Nd3 {[%clk 0:00:21]} 32. Bxf6 {[%clk 0:00:02]}  gxf6 {[%clk 0:00:09]} 33. Qc3 {[%clk 0:00:02]}  Nxc1 {[%clk 0:00:09]} 34. Qxc1 {[%clk 0:00:02]}  Qd6 {[%clk 0:00:09]} 35. Bf3 {[%clk 0:00:02]}  Kg7 {[%clk 0:00:08]} 0-1


[Site "https://www.chess.com"]

[Event "Titled Tuesday Blitz March 01 Early 2022"]
[White "Stefanov, Plamen"]
[Black "Poormosavi, Seyed Kian"]
[WhiteFideId "2900980"]
[BlackFideId "12585807"]
[WhiteElo "2137"]
[BlackElo "2116"]
[Result "0-1"]
[Round "05"]
[TimeControl "180+1"]
[Date "2022.03.01"]
[WhiteClock "0:00:15"]
[BlackClock "0:00:38"]

1. e4 {[%clk 0:03:00]}  c6 {[%clk 0:02:43]} 2. d4 {[%clk 0:03:00]}  d5 {[%clk 0:02:44]} 3. e5 {[%clk 0:03:00]}  c5 {[%clk 0:02:43]} 4. c3 {[%clk 0:02:56]}  Nc6 {[%clk 0:02:36]} 5. Bb5 {[%clk 0:02:54]}  Qb6 {[%clk 0:02:34]} 6. Bxc6+ {[%clk 0:02:52]}  bxc6 {[%clk 0:02:34]} 7. Ne2 {[%clk 0:02:40]}  cxd4 {[%clk 0:02:30]} 8. cxd4 {[%clk 0:02:39]}  e6 {[%clk 0:02:28]} 9. O-O {[%clk 0:02:39]}  c5 {[%clk 0:02:28]} 10. Nbc3 {[%clk 0:02:34]}  c4 {[%clk 0:02:25]} 11. b3 {[%clk 0:02:25]}  cxb3 {[%clk 0:02:24]} 12. axb3 {[%clk 0:02:25]}  Ne7 {[%clk 0:02:19]} 13. Ba3 {[%clk 0:02:24]}  Nc6 {[%clk 0:02:15]} 14. Bxf8 {[%clk 0:02:23]}  Kxf8 {[%clk 0:02:14]} 15. Qc2 {[%clk 0:02:19]}  Bd7 {[%clk 0:02:13]} 16. Na4 {[%clk 0:02:15]}  Qb4 {[%clk 0:02:07]} 17. Nc5 {[%clk 0:02:07]}  Be8 {[%clk 0:02:06]} 18. Ra4 {[%clk 0:02:05]}  Qb5 {[%clk 0:01:44]} 19. f4 {[%clk 0:02:04]}  Rc8 {[%clk 0:01:42]} 20. f5 {[%clk 0:01:40]}  Nxd4 {[%clk 0:01:39]} 21. Nxd4 {[%clk 0:01:39]}  Qxc5 {[%clk 0:01:39]} 22. Qxc5+ {[%clk 0:01:38]}  Rxc5 {[%clk 0:01:40]} 23. fxe6 {[%clk 0:01:36]}  Bxa4 {[%clk 0:01:39]} 24. Rxf7+ {[%clk 0:01:33]}  Ke8 {[%clk 0:01:39]} 25. Rxa7 {[%clk 0:01:24]}  Rf8 {[%clk 0:01:34]} 26. Ra8+ {[%clk 0:01:11]}  Ke7 {[%clk 0:01:33]} 27. Rxf8 {[%clk 0:01:08]}  Kxf8 {[%clk 0:01:34]} 28. bxa4 {[%clk 0:01:08]}  g6 {[%clk 0:01:26]} 29. Kf2 {[%clk 0:01:03]}  Ke7 {[%clk 0:01:25]} 30. Ke3 {[%clk 0:01:03]}  Rc3+ {[%clk 0:01:25]} 31. Kd2 {[%clk 0:01:01]}  Rc4 {[%clk 0:01:26]} 32. Kd3 {[%clk 0:00:58]}  Rxa4 {[%clk 0:01:25]} 33. g3 {[%clk 0:00:53]}  h5 {[%clk 0:01:23]} 34. Ke3 {[%clk 0:00:30]}  Ra3+ {[%clk 0:01:17]} 35. Kf4 {[%clk 0:00:29]}  Ra4 {[%clk 0:01:16]} 36. Ke3 {[%clk 0:00:28]}  Rc4 {[%clk 0:01:15]} 37. h4 {[%clk 0:00:27]}  Ra4 {[%clk 0:01:13]} 38. Ne2 {[%clk 0:00:20]}  Kxe6 {[%clk 0:01:10]} 39. Nf4+ {[%clk 0:00:20]}  Kxe5 {[%clk 0:01:06]} 40. Nxg6+ {[%clk 0:00:20]}  Kf5 {[%clk 0:01:06]} 41. Ne7+ {[%clk 0:00:20]}  Ke6 {[%clk 0:01:04]} 42. Nc6 {[%clk 0:00:19]}  Rg4 {[%clk 0:01:02]} 43. Kf3 {[%clk 0:00:16]}  d4 {[%clk 0:01:01]} 44. Nb4 {[%clk 0:00:14]}  Kf5 {[%clk 0:00:55]} 45. Nd3 {[%clk 0:00:14]}  Re4 {[%clk 0:00:52]} 46. Nf4 {[%clk 0:00:13]}  Re3+ {[%clk 0:00:52]} 47. Kf2 {[%clk 0:00:13]}  Kg4 {[%clk 0:00:50]} 48. Ne2 {[%clk 0:00:11]}  Rxe2+ {[%clk 0:00:34]} 49. Kxe2 {[%clk 0:00:11]}  Kxg3 {[%clk 0:00:35]} 50. Kd3 {[%clk 0:00:12]}  Kxh4 {[%clk 0:00:36]} 51. Kxd4 {[%clk 0:00:12]}  Kg3 {[%clk 0:00:36]} 52. Ke3 {[%clk 0:00:12]}  h4 {[%clk 0:00:37]} 53. Ke2 {[%clk 0:00:13]}  Kg2 {[%clk 0:00:37]} 54. Ke3 {[%clk 0:00:13]}  h3 {[%clk 0:00:37]} 55. Kf4 {[%clk 0:00:14]}  h2 {[%clk 0:00:38]} 56. Kg4 {[%clk 0:00:15]}  h1=Q {[%clk 0:00:38]} 0-1


[Site "https://www.chess.com"]

[Event "Titled Tuesday Blitz March 01 Early 2022"]
[White "Svane, Frederik"]
[Black "Moskalenko, Alexander"]
[WhiteFideId "12923044"]
[BlackFideId "4155351"]
[WhiteElo "2459"]
[BlackElo "2515"]
[Result "0-1"]
[Round "05"]
[TimeControl "180+1"]
[Date "2022.03.01"]
[WhiteClock "0:00:03"]
[BlackClock "0:00:24"]

1. c4 {[%clk 0:03:00]}  e6 {[%clk 0:02:59]} 2. Nf3 {[%clk 0:02:59]}  d5 {[%clk 0:02:58]} 3. e3 {[%clk 0:03:00]}  Nf6 {[%clk 0:02:57]} 4. Nc3 {[%clk 0:03:00]}  Nbd7 {[%clk 0:02:55]} 5. b3 {[%clk 0:02:56]}  Bd6 {[%clk 0:02:54]} 6. Bb2 {[%clk 0:02:55]}  O-O {[%clk 0:02:54]} 7. d4 {[%clk 0:02:50]}  c6 {[%clk 0:02:53]} 8. Bd3 {[%clk 0:02:48]}  e5 {[%clk 0:02:53]} 9. Be2 {[%clk 0:02:44]}  e4 {[%clk 0:02:53]} 10. Nd2 {[%clk 0:02:44]}  Re8 {[%clk 0:02:49]} 11. Qc1 {[%clk 0:02:41]}  Nf8 {[%clk 0:02:40]} 12. Ba3 {[%clk 0:02:37]}  Bb8 {[%clk 0:02:31]} 13. Bxf8 {[%clk 0:02:37]}  Rxf8 {[%clk 0:02:32]} 14. a4 {[%clk 0:02:12]}  a5 {[%clk 0:02:29]} 15. Qa3 {[%clk 0:02:12]}  Bd6 {[%clk 0:02:24]} 16. c5 {[%clk 0:02:10]}  Bc7 {[%clk 0:02:25]} 17. b4 {[%clk 0:02:10]}  axb4 {[%clk 0:02:24]} 18. Qxb4 {[%clk 0:02:11]}  h5 {[%clk 0:02:17]} 19. O-O {[%clk 0:02:08]}  Ng4 {[%clk 0:02:11]} 20. h3 {[%clk 0:01:58]}  Qh4 {[%clk 0:02:11]} 21. Qb1 {[%clk 0:01:24]}  Nh6 {[%clk 0:02:04]} 22. Qe1 {[%clk 0:00:43]}  Bxh3 {[%clk 0:01:09]} 23. f4 {[%clk 0:00:29]}  Qxe1 {[%clk 0:01:08]} 24. Rfxe1 {[%clk 0:00:30]}  Ba5 {[%clk 0:01:08]} 25. Rec1 {[%clk 0:00:27]}  Bg4 {[%clk 0:01:04]} 26. Bf1 {[%clk 0:00:20]}  Nf5 {[%clk 0:01:03]} 27. Kf2 {[%clk 0:00:20]}  f6 {[%clk 0:01:00]} 28. Nb3 {[%clk 0:00:20]}  Bc7 {[%clk 0:00:57]} 29. Be2 {[%clk 0:00:08]}  g5 {[%clk 0:00:52]} 30. Bxg4 {[%clk 0:00:07]}  hxg4 {[%clk 0:00:52]} 31. g3 {[%clk 0:00:08]}  gxf4 {[%clk 0:00:51]} 32. gxf4 {[%clk 0:00:09]}  Kg7 {[%clk 0:00:45]} 33. Rg1 {[%clk 0:00:08]}  g3+ {[%clk 0:00:43]} 34. Ke2 {[%clk 0:00:09]}  Rh8 {[%clk 0:00:44]} 35. Rg2 {[%clk 0:00:09]}  Rh2 {[%clk 0:00:42]} 36. Rg1 {[%clk 0:00:10]}  Rah8 {[%clk 0:00:38]} 37. Nd1 {[%clk 0:00:09]}  Rxg2+ {[%clk 0:00:37]} 38. Rxg2 {[%clk 0:00:10]}  Rh1 {[%clk 0:00:36]} 39. Nd2 {[%clk 0:00:06]}  Ba5 {[%clk 0:00:31]} 40. Nf1 {[%clk 0:00:06]}  Kh6 {[%clk 0:00:29]} 41. Nb2 {[%clk 0:00:02]}  Rh3 {[%clk 0:00:25]} 42. Nd1 {[%clk 0:00:03]}  Kh5 {[%clk 0:00:25]} 43. Rg1 {[%clk 0:00:03]}  Kh4 {[%clk 0:00:24]} 0-1


[Site "https://www.chess.com"]